lending/lending_fUSD_20250122
["ID","MTS","AMOUNT","RATE_DAILY","PERIOD"]
[349977879,1737545448322,-836.08,0.0002053,2]
[349977880,1737545448332,-2149.19,0.0002053,2]
[349977881,1737545448341,-1069.56,0.0002053,2]
[349977882,1737545448350,-550.24,0.0002053,2]
[349977883,1737545448359,-500.0,0.0002053,2]
[349977884,1737545448368,-500.0,0.0002053,2]
[349977885,1737545448378,-500.0,0.0002053,2]
[349977886,1737545448387,-551.6,0.0002053,2]
[349977887,1737545448397,-299.60229819,0.0002053,2]
[349977888,1737545448406,-756.32,0.0002053,2]
[349977889,1737545448419,-500.0,0.0002053,2]
[349977890,1737545448428,-500.0,0.0002053,2]
[349977891,1737545448438,-500.0,0.0002053,2]
[349977892,1737545448451,-500.0,0.0002053,2]
[349977893,1737545448461,-1543.48,0.0002053,2]
[349977894,1737545448470,-1365.5,0.0002053,2]
[349977895,1737545448479,-838.36,0.0002053,2]
[349977896,1737545448488,-500.0,0.0002053,2]
[349977897,1737545448500,-1233.47,0.0002053,2]
[349977898,1737545448510,-641.04,0.0002053,2]
[349977899,1737545448520,-631.8,0.0002053,2]
[349977900,1737545448529,-2181.61,0.0002053,2]
[349977901,1737545448540,-500.77,0.0002053,2]
[349977902,1737545448550,-1093.95,0.0002053,2]
[349977903,1737545448559,-631.01,0.0002053,2]
[349977904,1737545448568,-1372.31,0.0002053,2]
[349977905,1737545448577,-588.77,0.0002053,2]
[349977906,1737545448586,-500.0,0.0002053,2]
[349977907,1737545448596,-500.0,0.0002053,2]
[349977908,1737545448605,-1212.34,0.0002053,2]
[349977909,1737545448614,-500.0,0.0002053,2]
[349977910,1737545448623,-680.7,0.0002053,2]
[349977911,1737545448633,-500.0,0.0002053,2]
[349977912,1737545448643,-500.0,0.0002053,2]
[349977913,1737545448652,-692.0,0.0002053,2]
[349977914,1737545448661,-953.16,0.0002053,2]
[349977915,1737545448670,-500.0,0.0002053,2]
[349977916,1737545448679,-2296.14,0.0002053,2]
[349977917,1737545448689,-500.0,0.0002053,2]
[349977918,1737545448698,-500.0,0.0002053,2]
[349977919,1737545448707,-1293.69,0.0002053,2]
[349977920,1737545448716,-1244.0,0.0002053,2]
[349977921,1737545448725,-227.91408112,0.0002053,2]
[349977922,1737545449049,-500.0,0.00019708,2]
[349977923,1737545449059,-500.0,0.00019708,2]
[349977924,1737545449069,-205.52649876,0.000199,2]
[349977925,1737545449078,-173.17,0.00019982,2]
[349977926,1737545449087,-564.14,0.00019982,2]
[349977927,1737545449097,-1607.34,0.00020256,2]
[349977928,1737545449106,-610.30591888,0.0002053,2]
[349977929,1737545449115,-500.0,0.0002053,2]
[349977930,1737545449124,-500.0,0.0002053,2]
[349977931,1737545449134,-500.0,0.0002053,2]
[349977932,1737545449143,-500.0,0.0002053,2]
[349977933,1737545449152,-500.0,0.0002053,2]
[349977934,1737545449162,-727.62,0.0002053,2]
[349977935,1737545449170,-500.0,0.0002053,2]
[349977936,1737545449179,-500.0,0.0002053,2]
[349977937,1737545449189,-500.0,0.0002053,2]
[349977938,1737545449198,-500.0,0.0002053,2]
[349977939,1737545449208,-892.2,0.0002053,2]
[349977940,1737545449217,-1378.27,0.0002053,2]
[349977941,1737545449226,-500.0,0.0002053,2]
[349977942,1737545449235,-820.65,0.0002053,2]
[349977943,1737545449245,-500.0,0.0002053,2]
[349977944,1737545449254,-500.0,0.0002053,2]
[349977945,1737545449264,-500.0,0.0002053,2]
[349977946,1737545449274,-797.75,0.0002053,2]
[349977947,1737545449284,-500.0,0.0002053,2]
[349977948,1737545449294,-1009.86,0.0002053,2]
[349977949,1737545449304,-500.0,0.0002053,2]
[349977950,1737545449313,-500.0,0.0002053,2]
[349977951,1737545449323,-500.0,0.0002053,2]
[349977952,1737545449333,-1037.16,0.0002053,2]
[349977953,1737545449343,-500.0,0.0002053,2]
[349977954,1737545449352,-500.0,0.0002053,2]
[349977955,1737545449361,-1156.45,0.0002053,2]
[349977956,1737545449371,-1896.3,0.0002053,2]
[349977957,1737545449380,-500.0,0.0002053,2]
[349977958,1737545449390,-500.0,0.0002053,2]
[349977959,1737545449400,-348.07363769,0.0002053,2]
[349977960,1737545449411,-2619.76,0.0002053,2]
[349977961,1737545449420,-1607.34,0.0002053,2]
[349977962,1737545449430,-500.0,0.00020531,2]
[349977963,1737545449439,-500.0,0.00020531,2]
[349977964,1737545449449,-500.0,0.00020531,2]
[349977965,1737545449458,-500.0,0.00020531,2]
[349977966,1737545449468,-500.0,0.00020531,2]
[349977967,1737545449478,-500.0,0.00020531,2]
[349977968,1737545449489,-500.0,0.00020531,2]
[349977969,1737545449498,-500.0,0.00020531,2]
[349977970,1737545449507,-500.0,0.00020531,2]
[349977971,1737545449517,-513.98,0.00020531,2]
[349977972,1737545449527,-500.0,0.00020531,2]
[349977973,1737545449537,-500.0,0.00020531,2]
[349977974,1737545449546,-500.0,0.00020531,2]
[349977975,1737545449557,-500.0,0.00020531,2]
[349977976,1737545449566,-500.0,0.00020531,2]
[349977977,1737545449575,-500.0,0.00020531,2]
[349977978,1737545449584,-500.0,0.00020531,2]
[349977979,1737545449594,-500.0,0.00020531,2]
[349977980,1737545449604,-500.0,0.00020531,2]
[349977981,1737545449614,-500.0,0.00020531,2]
[349977982,1737545449625,-500.0,0.00020531,2]
[349977983,1737545449635,-500.0,0.00020531,2]
[349977984,1737545449644,-500.0,0.00020531,2]
[349977985,1737545449653,-602.04,0.00020531,2]
[349977986,1737545449662,-500.0,0.00020531,2]
[349977987,1737545449671,-500.0,0.00020531,2]
[349977988,1737545449679,-500.0,0.00020531,2]
[349977989,1737545449688,-500.0,0.00020531,2]
[349977990,1737545449696,-666.21,0.00020531,2]
[349977991,1737545449706,-500.0,0.00020531,2]
[349977992,1737545449715,-710.76,0.00020531,2]
[349977993,1737545449724,-566.87,0.00020531,2]
[349977994,1737545449735,-201.6,0.00020531,2]
[349977995,1737545449745,-500.0,0.00020531,2]
[349977996,1737545449755,-1485.36902265,0.00020555,2]
[349977997,1737545449764,-500.0,0.00020573,2]
[349977998,1737545449774,-2210.0,0.000206,2]
[349977999,1737545449783,-172.89841052,0.00020755,2]
[349978000,1737545449792,-1485.36902265,0.00020779,2]
[349978001,1737545449802,-200.0,0.00020801,2]
[349978002,1737545449811,-500.0,0.00020804,2]
[349978003,1737545449820,-500.0,0.00020804,2]
[349978004,1737545449829,-500.0,0.00020804,2]
[349978005,1737545449839,-500.0,0.00020804,2]
[349978006,1737545449848,-500.0,0.00020804,2]
[349978007,1737545449859,-500.0,0.00020804,2]
[349978008,1737545449868,-500.0,0.00020804,2]
[349978009,1737545449877,-500.0,0.00020804,2]
[349978010,1737545449886,-500.0,0.00020804,2]
[349978011,1737545449895,-500.0,0.00020804,2]
[349978012,1737545449904,-500.0,0.00020804,2]
[349978013,1737545449914,-500.0,0.00020804,2]
[349978014,1737545449925,-500.0,0.00020804,2]
[349978015,1737545449935,-352.624129,0.00020804,2]
[349978016,1737545449953,-500.0,0.00020804,2]
[349978017,1737545449963,-500.0,0.00020804,2]
[349978018,1737545449972,-589.394439,0.00020804,2]
[349978019,1737545449981,-541.61,0.00020804,2]
[349978020,1737545449992,-500.0,0.00020804,2]
[349978021,1737545450001,-500.0,0.00020804,2]
[349978022,1737545450010,-500.0,0.00020804,2]
[349978023,1737545450019,-500.0,0.00020804,2]
[349978024,1737545450029,-529.66,0.00020804,2]
[349978025,1737545450038,-597.84,0.00020804,2]
[349978026,1737545450047,-500.0,0.00020804,2]
[349978027,1737545450056,-644.32163848,0.00020804,2]
[349978028,1737545450065,-500.0,0.00020804,2]
[349978029,1737545450074,-500.0,0.00020804,2]
[349978030,1737545450083,-500.0,0.00020804,2]
[349978031,1737545450092,-500.0,0.00020804,2]
[349978032,1737545450101,-500.0,0.00020804,2]
[349978033,1737545450110,-500.0,0.00020804,2]
[349978034,1737545450119,-500.0,0.00020804,2]
[349978035,1737545450129,-500.0,0.00020804,2]
[349978036,1737545450138,-500.0,0.00020804,2]
[349978037,1737545450148,-500.0,0.00020804,2]
[349978038,1737545450161,-500.0,0.00020804,2]
[349978039,1737545450170,-500.0,0.00020804,2]
[349978040,1737545450179,-500.0,0.00020804,2]
[349978041,1737545450188,-500.0,0.00020804,2]
[349978042,1737545450198,-500.0,0.00020804,2]
[349978043,1737545450208,-500.0,0.00020804,2]
[349978044,1737545450219,-4387.51,0.00020804,2]
[349978045,1737545450229,-1167.96,0.00020804,2]
[349978046,1737545450238,-500.0,0.00020804,2]
[349978047,1737545450248,-723.78,0.00020804,2]
[349978048,1737545450258,-609.94,0.00020804,2]
[349978049,1737545450267,-500.0,0.00020804,2]
[349978050,1737545450276,-1019.47,0.00020804,2]
[349978051,1737545450286,-953.63,0.00020804,2]
[349978052,1737545450294,-500.0,0.00020804,2]
[349978053,1737545450304,-940.24,0.00020804,2]
[349978054,1737545450314,-500.0,0.00020804,2]
[349978055,1737545450323,-607.1,0.00020804,2]
[349978056,1737545450332,-500.0,0.00020804,2]
[349978057,1737545450343,-500.0,0.00020804,2]
[349978058,1737545450354,-1847.04,0.00020804,2]
[349978059,1737545450364,-2292.13,0.00020804,2]
[349978060,1737545450374,-713.78,0.00020804,2]
[349978061,1737545450384,-500.0,0.00020804,2]
[349978062,1737545450395,-984.48,0.00020804,2]
[349978063,1737545450405,-711.89,0.00020804,2]
[349978064,1737545450416,-500.0,0.00020804,2]
[349978065,1737545450425,-602.72,0.00020804,2]
[349978066,1737545450436,-157.610869,0.00020804,2]
[349978067,1737545450446,-752.95,0.00020804,2]
[349978068,1737545450456,-890.4,0.00020804,2]
[349978069,1737545450466,-1114.89,0.00020804,2]
[349978070,1737545450475,-860.94,0.00020804,2]
[349978071,1737545450486,-831.65,0.00020804,2]
[349978072,1737545450496,-500.0,0.00020804,2]
[349978073,1737545450505,-1608.48,0.00020804,2]
[349978074,1737545450515,-1423.67,0.00020804,2]
[349978075,1737545450524,-662.85,0.00020804,2]
[349978076,1737545450533,-886.17,0.00020804,2]
[349978077,1737545450543,-500.0,0.00020804,2]
[349978078,1737545450552,-2548.59,0.00020804,2]
[349978079,1737545450563,-500.0,0.00020804,2]
[349978080,1737545450574,-500.0,0.00020804,2]
[349978081,1737545450584,-500.0,0.00020804,2]
[349978082,1737545450594,-648.19,0.00020804,2]
[349978083,1737545450604,-1389.26,0.00020804,2]
[349978084,1737545450615,-1000.0,0.00020804,2]
[349978085,1737545450624,-836.08,0.00020804,2]
[349978086,1737545450634,-2149.19,0.00020804,2]
[349978087,1737545450644,-1069.56,0.00020804,2]
[349978088,1737545450654,-550.24,0.00020804,2]
[349978089,1737545450663,-500.0,0.00020804,2]
[349978090,1737545450673,-500.0,0.00020804,2]
[349978091,1737545450682,-551.6,0.00020804,2]
[349978092,1737545450691,-756.32,0.00020804,2]
[349978093,1737545450700,-500.0,0.00020804,2]
[349978094,1737545450710,-500.0,0.00020804,2]
[349978095,1737545450719,-500.0,0.00020804,2]
[349978096,1737545450728,-500.0,0.00020804,2]
[349978097,1737545450737,-1543.48,0.00020804,2]
[349978098,1737545450749,-1365.5,0.00020804,2]
[349978099,1737545450758,-838.36,0.00020804,2]
[349978100,1737545450767,-500.0,0.00020804,2]
[349978101,1737545450776,-1233.47,0.00020804,2]
[349978102,1737545450785,-641.04,0.00020804,2]
[349978103,1737545450794,-631.8,0.00020804,2]
[349978104,1737545450804,-2181.61,0.00020804,2]
[349978105,1737545450975,-500.77,0.00020804,2]
[349978106,1737545450985,-1093.95,0.00020804,2]
[349978107,1737545450996,-631.01,0.00020804,2]
[349978108,1737545451013,-1372.31,0.00020804,2]
[349978109,1737545451024,-588.77,0.00020804,2]
[349978110,1737545451034,-500.0,0.00020804,2]
[349978111,1737545451045,-500.0,0.00020804,2]
[349978112,1737545451054,-1212.34,0.00020804,2]
[349978113,1737545451064,-500.0,0.00020804,2]
[349978114,1737545451074,-680.7,0.00020804,2]
[349978115,1737545451083,-500.0,0.00020804,2]
[349978116,1737545451093,-500.0,0.00020804,2]
[349978117,1737545451103,-692.0,0.00020804,2]
[349978118,1737545451113,-953.16,0.00020804,2]
[349978119,1737545451123,-500.0,0.00020804,2]
[349978120,1737545451132,-2296.14,0.00020804,2]
[349978121,1737545451142,-500.0,0.00020804,2]
[349978122,1737545451152,-500.0,0.00020804,2]
[349978123,1737545451163,-1293.69,0.00020804,2]
[349978124,1737545451174,-1244.0,0.00020804,2]
[349978125,1737545451184,-838.22,0.00020804,2]
[349978126,1737545451195,-500.0,0.00020804,2]
[349978127,1737545451207,-500.0,0.00020804,2]
[349978128,1737545451218,-500.0,0.00020804,2]
[349978129,1737545451228,-500.0,0.00020804,2]
[349978130,1737545451238,-500.0,0.00020804,2]
[349978131,1737545451247,-727.62,0.00020804,2]
[349978132,1737545451257,-500.0,0.00020804,2]
[349978133,1737545451267,-500.0,0.00020804,2]
[349978134,1737545451276,-500.0,0.00020804,2]
[349978135,1737545451285,-500.0,0.00020804,2]
[349978136,1737545451295,-892.2,0.00020804,2]
[349978137,1737545451305,-1378.27,0.00020804,2]
[349978138,1737545451314,-500.0,0.00020804,2]
[349978139,1737545451325,-820.65,0.00020804,2]
[349978140,1737545451334,-500.0,0.00020804,2]
[349978141,1737545451343,-500.0,0.00020804,2]
[349978142,1737545451357,-500.0,0.00020804,2]
[349978143,1737545451367,-797.75,0.00020804,2]
[349978144,1737545451378,-500.0,0.00020804,2]
[349978145,1737545451389,-1009.86,0.00020804,2]
[349978146,1737545451399,-500.0,0.00020804,2]
[349978147,1737545451410,-500.0,0.00020804,2]
[349978148,1737545451419,-500.0,0.00020804,2]
[349978149,1737545451431,-1037.16,0.00020804,2]
[349978150,1737545451440,-500.0,0.00020804,2]
[349978151,1737545451451,-500.0,0.00020804,2]
[349978152,1737545451461,-1156.45,0.00020804,2]
[349978153,1737545451470,-1896.3,0.00020804,2]
[349978154,1737545451479,-500.0,0.00020804,2]
[349978155,1737545451490,-2619.76,0.00020804,2]
[349978156,1737545451500,-1607.34,0.00020804,2]
[349978157,1737545451509,-279.99282998,0.00020805,2]
[349978158,1737545451518,-500.0,0.00020805,2]
[349978159,1737545451528,-500.0,0.00020805,2]
[349978160,1737545451538,-500.0,0.00020805,2]
[349978161,1737545451548,-500.0,0.00020805,2]
[349978162,1737545451558,-500.0,0.00020805,2]
[349978163,1737545451567,-182.8444789,0.00020805,2]
[349978164,1737545451578,-500.0,0.00020805,2]
[349978165,1737545451588,-500.0,0.00020805,2]
[349978166,1737545451597,-513.98,0.00020805,2]
[349978167,1737545451606,-500.0,0.00020805,2]
[349978168,1737545451615,-500.0,0.00020805,2]
[349978169,1737545451624,-500.0,0.00020805,2]
[349978170,1737545451634,-500.0,0.00020805,2]
[349978171,1737545451643,-500.0,0.00020805,2]
[349978172,1737545451654,-500.0,0.00020805,2]
[349978173,1737545451663,-500.0,0.00020805,2]
[349978174,1737545451673,-500.0,0.00020805,2]
[349978175,1737545451683,-199.49,0.00020805,2]
[349978176,1737545451694,-500.0,0.00020805,2]
[349978177,1737545451704,-500.0,0.00020805,2]
[349978178,1737545451713,-500.0,0.00020805,2]
[349978179,1737545451723,-500.0,0.00020805,2]
[349978180,1737545451732,-602.04,0.00020805,2]
[349978181,1737545451742,-500.0,0.00020805,2]
[349978182,1737545451753,-500.0,0.00020805,2]
[349978183,1737545451763,-500.0,0.00020805,2]
[349978184,1737545451773,-500.0,0.00020805,2]
[349978185,1737545451782,-666.21,0.00020805,2]
[349978186,1737545451791,-500.0,0.00020805,2]
[349978187,1737545451800,-710.76,0.00020805,2]
[349978188,1737545451810,-566.87,0.00020805,2]
[349978189,1737545451819,-500.0,0.00020805,2]
[349978190,1737545451828,-200.0,0.00020861,2]
[349978191,1737545451837,-150.0,0.00020873,2]
[349978192,1737545451847,-200.0,0.00020889,2]
[349978193,1737545451857,-180.47128719,0.0002089,2]
[349978194,1737545451867,-52512.50931454,0.000209,2]
[349978195,1737545451887,-205.52649876,0.000203,2]
[349978196,1737545451897,-278.34350124,0.000209,2]
[349978197,1737545451978,-829.98837375,0.000209,2]
[349978198,1737545451990,-21594.454,0.000209,2]
[349978199,1737545452003,-17711.24752,0.000209,2]
[349978200,1737545452028,-500.0,0.00019708,2]
[349978201,1737545452038,-1314.14584884,0.000209,2]
[349978202,1737545537695,150.2,0.00018,3]
[349978203,1737546337119,-360.84234248,0.00014,2]
[349978204,1737546339449,160.46,0.00010137,2]
[349978206,1737546345083,-3689.17244459,0.00014,2]
[349978207,1737546345103,-550.0,0.00015,2]
[349978208,1737546345124,-614.37,0.00017989,2]
[349978209,1737546345144,-1324.121253,0.00018829,2]
[349978210,1737546345164,-250.0,0.00018924,2]
[349978211,1737546345185,-159.48,0.00019167,2]
[349978212,1737546345206,-1000.0,0.00019513,2]
[349978213,1737546345228,-496.57,0.00019634,2]
[349978214,1737546345253,-174.41,0.00019634,2]
[349978215,1737546345275,-300.0,0.00019707,2]
[349978216,1737546345295,-222.63905976,0.00019708,2]
[349978217,1737546438117,-178.54,0.00019526,30]
[349978218,1737546438139,-300.0,0.00019707,2]
[349978219,1737546438160,-191.48754753,0.00019708,2]
[349978220,1737546586340,583.65,0.00017301,2]
[349978222,1737546631753,-202.63,0.00019163,2]
[349978223,1737546631764,-94.89439154,0.00019181,2]
[349978224,1737546631913,-234.78560846,0.00019181,2]
[349978225,1737546631923,-334.84,0.00019198,2]
[349978226,1737546631933,-250.0,0.00019317,2]
[349978227,1737546631944,-583.65,0.00019565,2]
[349978228,1737546631955,-53.55213688,0.00019707,2]
[349978262,1737546637521,150.0,0.00018332,2]
[349978264,1737546637802,-150.0,0.00018886,2]
[349978265,1737546637812,-246.44786312,0.00019707,2]
[349978266,1737546637821,-500.0,0.00019708,2]
[349978267,1737546637831,-500.0,0.00019708,2]
[349978268,1737546637840,-500.0,0.00019708,2]
[349978269,1737546637850,-500.0,0.00019708,2]
[349978270,1737546637859,-500.0,0.00019708,2]
[349978271,1737546637869,-500.0,0.00019708,2]
[349978272,1737546637878,-500.0,0.00019708,2]
[349978273,1737546637888,-500.0,0.00019708,2]
[349978274,1737546637897,-468.8246174,0.00019708,2]
[349978275,1737546637906,-500.0,0.00019708,2]
[349978276,1737546637916,-500.0,0.00019708,2]
[349978277,1737546637925,-500.0,0.00019708,2]
[349978278,1737546637935,-500.0,0.00019708,2]
[349978279,1737546637943,-500.0,0.00019708,2]
[349978280,1737546637953,-500.0,0.00019708,2]
[349978281,1737546637962,-500.0,0.00019708,2]
[349978282,1737546637971,-500.0,0.00019708,2]
[349978283,1737546637980,-508.57935775,0.00019708,7]
[349978284,1737546637990,-500.0,0.00019708,2]
[349978285,1737546637999,-500.0,0.00019708,2]
[349978286,1737546638008,-500.0,0.00019708,2]
[349978287,1737546638017,-500.0,0.00019708,2]
[349978289,1737546638027,-500.0,0.00019708,2]
[349978291,1737546638036,-500.0,0.00019708,2]
[349978292,1737546638045,-500.0,0.00019708,2]
[349978294,1737546638054,-500.0,0.00019708,2]
[349978295,1737546638063,-415.05803871,0.00019708,2]
[349978297,1737546638072,-500.0,0.00019708,2]
[349978299,1737546638081,-500.0,0.00019708,2]
[349978300,1737546638090,-500.0,0.00019708,2]
[349978302,1737546638100,-500.0,0.00019708,2]
[349978304,1737546638109,-530.06,0.00019708,2]
[349978305,1737546638118,-500.0,0.00019708,2]
[349978307,1737546638127,-173.53999996,0.00019708,2]
[349978309,1737546638137,-500.0,0.00019708,2]
[349978311,1737546638146,-500.0,0.00019708,2]
[349978312,1737546638155,-500.0,0.00019708,2]
[349978314,1737546638165,-500.0,0.00019708,2]
[349978315,1737546638174,-482.16961586,0.00019708,2]
[349978317,1737546638183,-500.0,0.00019708,2]
[349978319,1737546638192,-500.0,0.00019708,2]
[349978320,1737546638201,-500.0,0.00019708,2]
[349978321,1737546638210,-247.11957653,0.00019708,2]
[349978322,1737546638219,-500.0,0.00019708,2]
[349978323,1737546638230,-500.0,0.00019708,2]
[349978324,1737546638239,-500.0,0.00019708,2]
[349978325,1737546638249,-443.68132029,0.00019708,2]
[349978326,1737546638261,-108.35867971,0.00019708,2]
[349978327,1737546638270,-500.0,0.00019708,2]
[349978328,1737546638280,-500.0,0.00019708,2]
[349978329,1737546638290,-500.0,0.00019708,2]
[349978330,1737546638300,-500.0,0.00019708,2]
[349978331,1737546638314,-500.0,0.00019708,2]
[349978332,1737546638323,-500.0,0.00019708,2]
[349978333,1737546638333,-640.45,0.00019708,2]
[349978334,1737546638343,-500.0,0.00019708,2]
[349978335,1737546638352,-500.0,0.00019708,2]
[349978336,1737546638362,-500.0,0.00019708,2]
[349978337,1737546638371,-500.0,0.00019708,2]
[349978338,1737546638380,-519.33,0.00019708,2]
[349978339,1737546638390,-505.18258187,0.00019708,2]
[349978340,1737546638401,-500.0,0.00019708,2]
[349978341,1737546638411,-500.0,0.00019708,2]
[349978342,1737546638420,-500.0,0.00019708,2]
[349978343,1737546638429,-500.0,0.00019708,2]
[349978344,1737546638439,-500.0,0.00019708,2]
[349978345,1737546638448,-500.0,0.00019708,2]
[349978346,1737546638459,-500.0,0.00019708,2]
[349978347,1737546638468,-500.0,0.00019708,2]
[349978348,1737546638478,-500.0,0.00019708,2]
[349978349,1737546638487,-500.0,0.00019708,2]
[349978350,1737546638496,-500.0,0.00019708,2]
[349978351,1737546638506,-500.0,0.00019708,2]
[349978352,1737546638516,-500.0,0.00019708,2]
[349978353,1737546638527,-500.0,0.00019708,2]
[349978354,1737546638536,-500.0,0.00019708,2]
[349978355,1737546638545,-500.0,0.00019708,2]
[349978356,1737546638555,-500.0,0.00019708,2]
[349978357,1737546638564,-378.60413182,0.00019708,2]
[349978358,1737546638574,-500.0,0.00019708,2]
[349978359,1737546638584,-500.0,0.00019708,2]
[349978360,1737546638593,-500.0,0.00019708,2]
[349978361,1737546638603,-500.0,0.00019708,2]
[349978362,1737546638612,-500.0,0.00019708,2]
[349978363,1737546638622,-223.75000461,0.00019708,2]
[349978364,1737546638631,-500.0,0.00019708,2]
[349978365,1737546638640,-500.0,0.00019708,2]
[349978366,1737546638649,-500.96,0.00019708,2]
[349978367,1737546638659,-500.0,0.00019708,2]
[349978368,1737546638668,-500.0,0.00019708,2]
[349978369,1737546638677,-500.0,0.00019708,2]
[349978370,1737546638686,-558.39,0.00019708,2]
[349978371,1737546638697,-500.0,0.00019708,2]
[349978372,1737546638708,-500.0,0.00019708,2]
[349978373,1737546638717,-500.0,0.00019708,2]
[349978374,1737546638728,-500.0,0.00019708,2]
[349978375,1737546638737,-500.0,0.00019708,2]
[349978376,1737546638747,-500.0,0.00019708,2]
[349978377,1737546638756,-500.0,0.00019708,2]
[349978378,1737546638764,-577.5,0.00019708,2]
[349978379,1737546638776,-704.14,0.00019708,2]
[349978380,1737546638785,-500.0,0.00019708,2]
[349978381,1737546638794,-500.0,0.00019708,2]
[349978382,1737546638803,-500.0,0.00019708,2]
[349978383,1737546638813,-500.0,0.00019708,2]
[349978384,1737546638821,-500.0,0.00019708,2]
[349978385,1737546638830,-241.95654461,0.00019708,2]
[349978386,1737546638839,-804.03,0.00019708,2]
[349978387,1737546638849,-622.8,0.00019708,2]
[349978388,1737546638858,-847.32,0.00019708,2]
[349978389,1737546638868,-755.74,0.00019708,2]
[349978390,1737546638877,-500.0,0.00019708,2]
[349978391,1737546638886,-500.0,0.00019708,2]
[349978392,1737546638895,-610.82,0.00019708,2]
[349978393,1737546638904,-500.0,0.00019708,2]
[349978394,1737546638914,-500.0,0.00019708,2]
[349978395,1737546638923,-500.0,0.00019708,2]
[349978396,1737546638932,-150.0,0.00019765,2]
[349978397,1737546638941,-919.7149161,0.00019881,2]
[349978398,1737546638950,-1661.52990128,0.00019882,2]
[349978399,1737546639119,-975.63949975,0.00019882,2]
[349978400,1737546639131,-1855.68172605,0.00019882,2]
[349978401,1737546639747,-3073.13814854,0.00019882,2]
[349978402,1737546639758,-753.69950238,0.00019882,2]
[349978403,1737546639858,-867.51146052,0.00019882,2]
[349978404,1737546639870,-1574.4,0.00019882,2]
[349978405,1737546639946,-118.06331121,0.00019882,2]
[349978406,1737546639995,-539.83795027,0.00019882,2]
[349978407,1737546640005,-110.01106302,0.00019972,2]
[349978408,1737546640016,-59.41893698,0.00019972,2]
[349978409,1737546640026,-484.92580148,0.00019981,2]
[349978410,1737546640049,-225.79209552,0.00019981,2]
[349978411,1737546640059,-418.626739,0.00019981,2]
[349978412,1737546640068,-500.0,0.00019981,2]
[349978413,1737546640078,-500.0,0.00019981,2]
[349978414,1737546640087,-500.0,0.00019981,2]
[349978415,1737546640096,-500.0,0.00019981,2]
[349978416,1737546640105,-500.0,0.00019981,2]
[349978417,1737546640114,-500.0,0.00019981,2]
[349978418,1737546640123,-500.0,0.00019981,2]
[349978419,1737546640132,-528.14,0.00019981,2]
[349978420,1737546640142,-500.0,0.00019981,2]
[349978421,1737546640151,-500.0,0.00019981,2]
[349978422,1737546640160,-500.0,0.00019981,2]
[349978423,1737546640169,-500.0,0.00019981,2]
[349978424,1737546640179,-500.0,0.00019981,2]
[349978425,1737546640188,-500.0,0.00019981,2]
[349978426,1737546640198,-576.61,0.00019981,2]
[349978427,1737546640207,-500.0,0.00019981,2]